Cogmind - Beta 15 @@@ ROGUE MODE // 2025.09.11 @ 11:54:02 Player: TapeIsSticky Result: Escaped! Performance ------------- Evolutions (9) 4500 Regions Visited (23) 4600 Robots Destroyed (158) 790 Value Destroyed (7240) 7240 Prototype IDs (52) 1040 Alien Tech Used (3) 600 Bonus (12902) 12902 TOTAL SCORE: 31672 Bonus ------- High Alert Combat Kills 12 Follower Combat Kills 2902 Forged Quantum Companion 1000 Network Hubs Disabled 200 Registered with UFD 300 Met Optimus in HQ 500 Met Zhirov 300 Met Warlord at Base 500 MAIN.C Attacked Warlord 500 Warlord Defense Kills 588 Built Enhanced Grunts 300 A7 Reached Mainframe 300 Met R17 at Cetus 500 Met R17 at Research 2000 Win 3000 Cogmind --------- Core Integrity 1496/1600 Matter 65/300 Energy 99/100 System Corruption 19% Temperature Cool (0) Movement Core (50) Location To Epsilon Eridani Parts ------- > --- POWER (4) -------- (None) > --- PROPULSION (6) --- (None) > --- UTILITY (11) ----- (None) > --- WEAPON (4) ------- Quantum Companion > --- INVENTORY (5) ---- Advanced Coolant Injector EM Shield Advanced Force Field Mini Drone Bay (3/3) Linear Accelerator Peak State ------------ > --- POWER ------------ Micro Antimatter Reactor Quantum Reactor Quantum Reactor > --- PROPULSION ------- Armored Heavy Treads Armored Heavy Treads Centrium Heavy Treads > --- UTILITY ---------- Huge Storage Unit Advanced Sensor Array Advanced Signal Interpreter Experimental Terrain Scanner Advanced Terrain Scan Processor Advanced Launcher Guidance Computer Experimental Core Analyzer Centrium Medium Armor Plating Graphene Brace Advanced Hacking Suite A0-MCA's Component Scanner > --- WEAPON ----------- Nova Cannon Quantum Companion Sigix Broadsword > --- INVENTORY -------- Advanced Coolant Injector Advanced Coolant Injector Improved Matter Compressor Advanced Weapon Cycler Advanced Powered Armor Experimental Focal Shield Advanced Force Field Long-range Tractor Beam Mini Drone Bay Gamma Rifle Vortex Rifle Precision Phase Gun Disruptor Cannon HERF Cannon Railgun Advanced KE Penetrator Linear Accelerator Heavy Linear Accelerator Compact Tesla Bomb Launcher [Rating: 213] Favorites ----------- Power Quantum Reactor Engine Improved Deuterium Engine Power Core Nuclear Core Reactor Quantum Reactor Propulsion Light Treads Treads Light Treads Leg Cargo Legs Wheel Overtuned Scrapsphere Utility Huge Storage Unit Device Scrap Suit Storage Huge Storage Unit Processor Advanced Targeting Computer Hackware System Mapper Protection Centrium Medium Armor Plating Weapon Advanced KE Penetrator Energy Gun Subdweller Laser Energy Cannon Nova Cannon Ballistic Gun Advanced KE Penetrator Ballistic Cannon Slug Cannon Launcher Compact Tesla Bomb Launcher Special Weapon CPS Tube Slashing Weapon Companion Sword Build | -11 -10 -10 -8 -8 -6 -6 -6 -6 -6 -5 -5 -5 -5 -4 -4 -4 -4 -4 -3 -3 -3 -2 -1 ------- Run | Yrd Mat Sub Rec Scr Fac Ext Cet Arc Hub Fac Upp Upp Zhi Pro Fac Upp Upp War Pro Res Qua Res Acc Slots Evolved 18 | . . . . . 8 . . . . 2 . . . . 2 . . . . 2 . 2 2 Power 3 | . . . . . 1 . . . . . . . . . . . . . . . . 1 1 Propulsion 4 | . . . . . 2 . . . . . . . . . 1 . . . . 1 . . . Utility 9 | . . . . . 4 . . . . 1 . . . . 1 . . . . 1 . 1 1 Weapon 2 | . . . . . 1 . . . . 1 . . . . . . . . . . . . . Parts Attached 180 | 8 4 16 2 7 20 20 8 8 3 7 4 1 3 7 5 1 2 13 8 17 8 4 4 Power 26 | 1 . 2 . 1 2 4 2 . . 1 . . 1 . . . . 1 3 3 3 . 2 Engine 6 | 1 . 2 . . . 2 . . . 1 . . . . . . . . . . . . . Core 4 | . . . . 1 1 2 . . . . . . . . . . . . . . . . . Reactor 16 | . . . . . 1 . 2 . . . . . 1 . . . . 1 3 3 3 . 2 Propulsion 32 | 2 . 3 . . 6 7 . 2 . 1 1 . . 1 2 . . 4 . 2 1 . . Treads 26 | 2 . 1 . . 5 5 . 2 . 1 . . . 1 2 . . 4 . 2 1 . . Leg 1 | . . 1 . . . . . . . . . . . . . . . . . . . . . Wheel 5 | . . 1 . . 1 2 . . . . 1 . . . . . . . . . . . . Hover . | . . . . . . . . . . . . . . . . . . . . . . . . Flight . | . . . . . . . . . . . . . . . . . . . . . . . . Utility 74 | 2 1 3 2 3 9 6 1 4 2 3 3 1 2 5 3 1 2 4 3 7 3 2 2 Device 32 | 1 . . . 1 4 2 . 4 . . 1 1 . 3 2 1 1 3 1 3 1 2 1 Storage 11 | 1 1 . 2 1 . 2 . . . 2 . . 1 1 . . . . . . . . . Processor 13 | . . . . . 4 . . . . . 1 . . . 1 . 1 . 2 3 1 . . Hackware 5 | . . . . . . 1 . . 2 . . . . . . . . 1 . . . . 1 Protection 13 | . . 3 . 1 1 1 1 . . 1 1 . 1 1 . . . . . 1 1 . . Artifact . | . . . . . . . . . . . . . . . . . . . . . . . . Weapon 48 | 3 3 8 . 3 3 3 5 2 1 2 . . . 1 . . . 4 2 5 1 2 . Energy Gun 9 | 1 . 3 . . . . 1 . 1 . . . . . . . . 2 1 . . . . Energy Cannon 2 | . . . . . . . . . . . . . . . . . . . . 2 . . . Ballistic Gun 21 | 2 2 1 . 2 2 3 3 2 . 1 . . . . . . . 1 1 1 . . . Ballistic Cannon 7 | . . 3 . . . . . . . 1 . . . 1 . . . 1 . 1 . . . Launcher 5 | . 1 1 . . 1 . . . . . . . . . . . . . . 1 1 . . Special Weapon 1 | . . . . . . . 1 . . . . . . . . . . . . . . . . Impact Weapon . | . . . . . . . . . . . . . . . . . . . . . . . . Slashing Weapon 3 | . . . . 1 . . . . . . . . . . . . . . . . . 2 . Piercing Weapon . | . . . . . . . . . . . . . . . . . . . . . . . . Special Melee Weapon . | . . . . . . . . . . . . . . . . . . . . . . . . Unidentified Prototypes 22 | . . 1 . 1 . . 3 1 1 . 1 . 4 1 1 . . 4 3 . . 1 . Corrupted Parts 11 | . . . . . . . 1 3 . . . . . 1 . . . 1 1 . 3 . 1 System Corruption 77 | . . . . . . . 7 25 . . . . . 5 . . . 2 2 . 28 . 8 Parts Lost 39 | . . 6 . . 2 . 1 . . 1 . . . . . . . 7 9 . 8 . 5 Power 7 | . . . . . . . . . . . . . . . . . . 1 2 . 3 . 1 Propulsion 9 | . . 4 . . 1 . . . . . . . . . . . . 2 . . . . 2 Utility 13 | . . 1 . . 1 . . . . 1 . . . . . . . 1 5 . 3 . 1 Weapon 10 | . . 1 . . . . 1 . . . . . . . . . . 3 2 . 2 . 1 Highest Loss Streak 7 | . . 5 . . 2 . 1 . . 1 . . . . . . . 7 7 . 4 . 2 To Critical Strikes 1 | . . . . . . . . . . . . . . . . . . 1 . . . . . Average Backups 18 | 1 14 6 16 18 17 20 22 22 22 21 23 23 23 23 22 23 23 22 16 17 21 19 19 Power . | . 1 . . . . 1 1 2 2 2 2 2 2 2 1 1 1 . 2 2 . . . Propulsion 2 | . 2 1 6 7 1 3 4 3 2 2 2 2 2 2 1 2 2 1 . . . . . Utility 8 | . 4 . 3 4 10 11 12 13 13 12 14 14 13 13 13 14 14 13 8 8 11 10 9 Weapon 5 | . 5 4 6 5 4 4 4 4 5 4 5 5 5 5 5 5 5 5 4 6 8 9 9 Tool/Special . | . . . . . . . . . . . . . . . . . . . . . . . . Unused Backups 49 | . 3 5 4 5 4 3 1 1 . 2 1 2 1 1 2 1 . 1 . 3 2 . 7 Power 3 | . . . . . . 1 . . . 1 . . . . . . . . . 1 . . . Propulsion 5 | . . 2 . 3 . . . . . . . . . . . . . . . . . . . Utility 22 | . . 1 3 1 2 1 . 1 . 1 . 2 1 . 2 1 . . . 1 2 . 3 Weapon 18 | . 3 2 1 1 2 1 1 . . . 1 . . 1 . . . 1 . . . . 4 Tool/Special 1 | . . . . . . . . . . . . . . . . . . . . 1 . . . Average Slot Usage (%) 84 | . 99 78 77 69 97 97 92 85 93 93 86 88 70 87 88 89 89 88 78 82 84 76 71 Engine 4 | . 14 12 11 1 . 4 4 6 6 5 5 5 2 . . . . . . . . . . Reactor 4 | . . . . . 5 6 2 6 6 5 5 5 8 11 10 10 10 9 8 6 6 8 8 Treads 12 | . 27 17 . . 22 17 13 7 13 11 11 11 11 11 15 15 15 14 9 13 17 13 9 Leg 2 | . . 3 11 12 . . . . . . . . . . . . . . . . . . . Wheel 3 | . . . . . 3 8 13 13 13 11 7 5 5 5 5 5 5 5 5 2 . . . Device 8 | . 14 . . 1 8 2 6 9 10 16 11 11 11 10 14 15 15 14 18 17 11 11 11 Storage 7 | . 14 2 11 11 6 6 6 6 6 5 5 5 5 5 5 5 5 5 5 4 4 4 3 Processor 7 | . . . . . 18 17 13 13 10 5 7 11 11 11 10 10 10 6 6 18 20 21 19 Protection 7 | . . 15 22 17 4 7 6 1 . 4 5 5 5 5 5 5 4 4 . 1 4 5 3 Energy Gun 4 | . 1 11 20 14 . . . . . . . . . . . . . . 4 . . . . Ballistic Gun 10 | . 26 2 . 5 12 13 11 13 12 13 11 11 . 12 13 15 15 14 9 6 5 . . Ballistic Cannon 1 | . . 12 . . . . . . . 3 4 5 . 3 1 . . . . 1 . . . Slashing Weapon 3 | . . . . 2 6 6 6 6 6 5 5 5 5 5 5 5 5 5 5 4 3 6 7 Peak Build Rating 213 | 7 10 34 32 36 65 71 89 99 89 102 105 105 110 120 138 138 138 148 145 174 183 198 213 Average Rating 79 | 6 8 19 31 31 58 64 75 90 88 99 100 104 86 115 134 137 137 142 132 155 170 194 186 On Entrance 90 | . 7 9 31 32 36 65 71 88 92 88 95 105 105 110 116 138 138 138 75 99 172 163 198 Naked Turns 1 | . . . . . . . . . . . . . . . . . . . . . . . 1 Heaviest Build 172 | 12 28 60 76 76 81 127 137 137 131 148 147 147 155 164 157 151 151 156 143 159 172 147 162 Greatest Support 200 | 40 40 55 55 55 83 60 16 80 16 16 53 20 20 20 87 20 20 20 20 195 200 200 200 Greatest Overweight (x) 11 | . . 11 1 1 6 10 8 8 8 9 9 7 7 8 7 7 7 7 7 7 . . 2 Average Overweight (x) 3 | . . . 1 . 3 6 7 2 8 9 7 7 6 7 6 7 7 6 5 3 . . . Largest Inventory Capacity 25 | 8 15 15 20 20 20 25 25 25 25 25 25 25 25 25 25 25 25 25 25 25 25 25 25 Average Capacity 20 | 7 14 7 18 19 20 21 25 25 25 25 25 25 25 25 25 25 25 25 25 25 25 25 24 Most Carried 25 | 3 15 15 20 20 20 25 25 25 25 25 25 25 25 25 25 25 25 25 21 25 25 22 21 Average Carried 19 | 1 14 6 16 18 17 21 24 23 24 24 25 24 25 24 24 24 25 24 17 18 23 20 19 Final Capacity 25 | 8 15 15 20 20 20 25 25 25 25 25 25 25 25 25 25 25 25 25 25 25 25 25 5 Final Carried 25 | 3 15 13 19 20 20 25 25 25 24 25 25 25 25 25 25 25 25 23 16 23 24 20 5 Class Distribution -------------------- 22% | Mutant 19% | Subdweller-Mutant 15% | Scavenger-Assassin 13% | Scavenger-Mutant 9% | Scavenger-Gunner 5% | Commander-Mutant 4% | Scavenger-Skirmisher 4% | Scavenger-Tank Dominant Class ---------------- Mutant | -10/Materials Mutant | -10/Subcaves Subdweller-Mutant | -8/Recycling Subdweller-Mutant | -8/Scraptown Scavenger-Mutant | -6/Factory Commander-Mutant | -6/Extension Scavenger-Mutant | -6/Cetus Scavenger-Mutant | -6/Archives Scavenger-Mutant | -6/Hub_04(d) Scavenger-Skirmisher | -5/Factory Scavenger-Gunner | -5/Upper Caves Scavenger-Gunner | -5/Upper Caves Scavenger-Mutant | -5/Zhirov Scavenger-Gunner | -4/Proximity Caves Scavenger-Assassin | -4/Factory Scavenger-Assassin | -4/Upper Caves Scavenger-Assassin | -4/Upper Caves Scavenger-Gunner | -4/Warlord Scavenger-Tank | -3/Proximity Caves Scavenger-Assassin | -3/Research Scavenger-Tank | -3/Quarantine Scavenger-Assassin | -2/Research Generator-Assassin | -1/Access Resources | -11 -10 -10 -8 -8 -6 -6 -6 -6 -6 -5 -5 -5 -5 -4 -4 -4 -4 -4 -3 -3 -3 -2 -1 ----------- Run | Yrd Mat Sub Rec Scr Fac Ext Cet Arc Hub Fac Upp Upp Zhi Pro Fac Upp Upp War Pro Res Qua Res Acc Matter Collected 7325 | 316 373 458 136 120 362 631 383 174 102 182 284 180 380 423 216 198 55 377 471 862 424 . 218 Remotely 511 | . . . . . . 97 . . . . . . . . 216 . . 198 . . . . . Salvage Created 8330 | 200 459 208 456 . 426 557 62 307 478 143 70 226 329 508 208 263 . 259 698 268 717 . 1488 Parts 460 | 14 37 23 22 . 32 23 1 34 16 8 2 8 1 33 13 1 . 10 29 9 57 . 87 Haulers Intercepted 5 | . 2 . . . . . . . 2 . . . . . . . . . . 1 . . . Recyclers Shooed 6 | . 3 . 1 . 2 . . . . . . . . . . . . . . . . . . Parts Field Recycled . | . . . . . . . . . . . . . . . . . . . . . . . . Retrieved Matter . | . . . . . . . . . . . . . . . . . . . . . . . . Parts Self-Destructed 90 | . . 13 . . . . . . . . 14 11 1 27 . . . . 24 . . . . Prevented 12 | . . . . . . . . . . . . . . . . . . . 12 . . . . Kills | -11 -10 -10 -8 -8 -6 -6 -6 -6 -6 -5 -5 -5 -5 -4 -4 -4 -4 -4 -3 -3 -3 -2 -1 ------- Run | Yrd Mat Sub Rec Scr Fac Ext Cet Arc Hub Fac Upp Upp Zhi Pro Fac Upp Upp War Pro Res Qua Res Acc Combat Hostiles Destroyed 93 | . 9 9 3 . 10 7 . . . 2 1 3 . 4 4 . . 4 12 2 9 . 14 Melee 5 | . . . . . 3 . . . . 1 . . . . . . . . . . . . 1 Guns 47 | . 6 7 3 . 7 4 . . . 1 1 2 . 1 3 . . 3 9 . . . . Cannons 6 | . . 1 . . . . . . . . . 1 . 1 1 . . . . . . . 2 AOE 16 | . 3 1 . . . 3 . . . . . . . 2 . . . . 3 . 3 . 1 Classes Destroyed 20 | 3 5 2 1 . 1 . 1 1 1 . . 1 . 2 . . . . 1 . . . 1 Worker 8 | 1 2 . . . . . . . 1 . . . . . . . . . . . . . 4 Builder 15 | . 1 . . . 1 1 . . 2 1 . . . . . . . . . . . . 9 Tunneler 5 | 4 1 . . . . . . . . . . . . . . . . . . . . . . Hauler 5 | . 2 . . . . . . . 2 . . . . . . . . . . 1 . . . Recycler 8 | 1 1 . 4 . . 1 . . 1 . . . . . . . . . . . . . . Minesweeper 2 | . . . . . . . . . . . . . . 1 . 1 . . . . . . . Operator 10 | . . . . . . . . 9 . . . . . . . . . . . . 1 . . Drone 1 | . . . . . . . . . . . . . . . . . . . . . . . 1 Turret 2 | . . 2 . . . . . . . . . . . . . . . . . . . . . Watcher 7 | . 2 . . . 1 2 . . . . . . . . . . . . . . . . 2 Swarmer 14 | . 3 4 . . 3 1 . . . . . . . 2 . . . . 1 . . . . Grunt 35 | . 6 . . . 2 6 . . . . 1 2 . 2 . . . 1 6 1 3 . 5 Brawler 2 | . . . . . . . . . . . . 1 . . . . . . 1 . . . . Duelist 1 | . . . . . . . . . . . . . . . . . . . 1 . . . . Sentry 8 | . . . 3 . 2 . . . . 1 . . . . . . . . 1 . . . 1 Hunter 8 | . . . . . . . . . . . . . . . . . . 1 2 1 . . 4 Programmer 12 | . . . . . 3 . . . . 1 . . . . 4 . . 1 . . . . 3 Quarantine Guard 6 | . . . . . . . . . . . . . . . . . . . . . 6 . . Subdweller 5 | . . 5 . . . . . . . . . . . . . . . . . . . . . Scrapoid 3 | . . . . . . . 1 . . . . . . 2 . . . . . . . . . Samaritan 3 | . . . . . . . . . . . . . . 3 . . . . . . . . . Guerrilla 1 | . . . . . . . . . 1 . . . . . . . . . . . . . . Commander 1 | . . . . . . . . . . . . . . . . . . 1 . . . . . Best Kill Streak 10 | 3 5 3 4 . 3 3 . 2 5 1 1 3 . 2 2 1 . 2 4 2 3 . 10 Combat Bots Only 5 | . 3 3 2 . 3 3 . . . 1 1 3 . 2 2 . . 2 4 2 3 . 5 Max Kills in Single Turn 4 | 1 2 2 1 . 2 3 1 1 3 1 1 1 . 1 1 1 . 1 1 1 2 . 4 Gunslinging 1 | . 1 . . . 1 . . . . . . . . . . . . . . . . . . Exploded 3 | . 2 1 . . . 3 . . . . . . . 1 . . . . 1 . 1 . 1 Melee 1 | . . . . . 1 . . . . 1 . . . . . . . . . . . . 1 Uniques/NPCs Destroyed . | . . . . . . . . . . . . . . . . . . . . . . . . Combat | -11 -10 -10 -8 -8 -6 -6 -6 -6 -6 -5 -5 -5 -5 -4 -4 -4 -4 -4 -3 -3 -3 -2 -1 -------- Run | Yrd Mat Sub Rec Scr Fac Ext Cet Arc Hub Fac Upp Upp Zhi Pro Fac Upp Upp War Pro Res Qua Res Acc Hostile Shots Fired 930 | . 21 112 . . 116 95 2 3 18 11 . 2 . 34 25 . . 183 127 17 71 . 93 Missed 322 | . 8 29 . . 43 46 1 . 9 2 . 1 . 9 10 . . 51 48 8 28 . 29 Deflected 2 | . . . . . . . . . . . . . . . 1 . . . . . . . 1 Hits 608 | . 13 83 . . 73 49 1 3 9 9 . 1 . 25 15 . . 132 79 9 43 . 64 Melee 11 | . . . . . . . . . . . . . . . . . . 2 9 . . . . Projectile 597 | . 13 83 . . 73 49 1 3 9 9 . 1 . 25 15 . . 130 70 9 43 . 64 AOE 12 | . . 8 . . 2 . . . . . . . . . . . . 2 . . . . . Critical Strikes 29 | . . . . . 1 2 2 . . 1 1 1 . 2 4 . . 6 2 . 4 . 3 Actively Blocked 6 | . . . . . . . . . . . . . . . . . . . . . 3 . 3 Part Disruptions 3 | . . . . . . . . . . . . . . . 2 . . . . . . . 1 Damage Taken 14104 | . 171 1746 . . 916 584 83 81 176 214 50 22 . 679 288 . . 2901 1943 238 2237 . 1775 Core 1281 | . 18 189 . . 115 67 . . 12 16 . . . 31 44 . . 344 156 33 152 . 104 Absorbed by Shields 403 | . . . . . . 85 30 . . . . . . . . . . . 137 84 67 . . Reduced by Siege Mode 43 | . . . . . . . . . . . . . . . . . . . 43 . . . . Ignored by Resistances 28 | . . . . . . . . . . . . . . . . . . . . . . . 28 Regen/Repaired (Parts) 523 | . 56 . . . 75 . . . . . . . . . 10 . . 10 10 348 . . 14 Core Remaining (%) 77 | 100 . . . 17 . . . . 77 . . . . 95 . . . . 49 . 85 100 93 Volleys Fired 398 | 12 37 50 7 . 24 32 9 . 6 6 6 12 . 18 14 4 . 12 33 25 55 . 36 Largest 3 | 2 2 2 2 . 2 2 2 . 1 3 3 3 . 3 3 3 . 3 3 3 3 . 2 Hottest 240 | 60 60 100 120 . 60 60 240 . 35 105 117 117 . 121 121 105 . 105 145 119 129 . 183 Shots Fired 697 | 24 65 95 13 . 46 63 16 2 9 12 11 22 . 39 31 7 2 34 76 29 65 . 36 Gun 484 | 24 59 51 13 . 43 62 16 2 9 9 7 10 . 21 23 7 2 34 72 11 9 . . Cannon 132 | . . 40 . . . . . . . 3 4 12 . 14 8 . . . . 4 33 . 14 Launcher 81 | . 6 4 . . 3 1 . . . . . . . 4 . . . . 4 14 23 . 22 Special . | . . . . . . . . . . . . . . . . . . . . . . . . Kinetic 494 | 12 55 64 . . 43 62 14 2 9 12 11 22 . 35 31 7 2 33 51 10 9 . 10 Thermal 116 | 12 4 31 13 . . . 2 . . . . . . . . . . . 17 . 33 . 4 Explosive 30 | . 6 . . . 3 1 . . . . . . . 4 . . . . 4 12 . . . Electromagnetic 47 | . . . . . . . . . . . . . . . . . . . . 2 23 . 22 Entropic 10 | . . . . . . . . . . . . . . . . . . 1 4 5 . . . Robot Hit Streak 23 | 11 14 15 6 . 9 9 5 . 1 6 7 4 . 14 20 1 . 5 8 2 19 . 23 Robot Miss Streak 5 | 1 2 3 1 . 2 3 1 1 2 . 2 2 . 1 1 2 . 3 2 3 2 . 5 Penetration Max 1 | . . . . . . . . . 1 . . . . . . . . . 1 . 1 . . Secondary Targets 4 | . 1 . . . 1 . . . . . . . . . 1 . . . 1 . . . . Max Gunslinging Chain 1 | . 1 . . . 1 . . . . . . . . . 1 . . . 1 . . . . Autonomous 1 | . . . . . . . . . . . . . . . . . . . . . . . 1 Shots Hit Robots 422 | 18 40 55 8 . 45 48 11 11 4 11 4 7 4 30 21 7 . 15 45 6 12 . 20 Core Hits 267 | 7 31 18 7 . 19 23 4 5 10 6 1 3 3 14 9 2 . 5 36 3 29 . 32 Critical Kills 6 | . . . 1 . 1 . . . 1 . . . . . . . . 2 1 . . . . Critical Parts Destroyed 11 | . . 3 . . 1 1 1 . . 1 . 1 . . 1 . . 1 1 . . . . Critical Strikes 31 | . . 8 1 . 2 1 1 . 1 1 . 1 . 2 2 . . 3 4 . . . 4 Burn 2 | . . . . . . . . . . . . . . . . . . . 2 . . . . Destroy 22 | . . 7 1 . 2 1 1 . 1 1 . 1 . 1 1 . . 3 2 . . . . Blast 5 | . . 1 . . . . . . . . . . . 1 1 . . . . . . . 2 Melee Attacks 171 | . . . . . 34 4 1 13 8 16 2 5 4 10 20 13 2 2 . 15 4 . 18 Impact . | . . . . . . . . . . . . . . . . . . . . . . . . Slashing 171 | . . . . . 34 4 1 13 8 16 2 5 4 10 20 13 2 2 . 15 4 . 18 Piercing . | . . . . . . . . . . . . . . . . . . . . . . . . Sneak Attacks 28 | . . . . . 1 . 1 11 3 3 . . . 6 . 2 . . . 1 . . . Combat Hostiles . | . . . . . . . . . . . . . . . . . . . . . . . . Follow-up Attacks 1 | . . . . . . . . . . . . . . . . . . . . . . . 1 Damage Inflicted 18515 | 206 827 1453 217 . 1293 1310 299 1138 937 481 79 192 331 1230 834 556 . 361 1641 397 1553 . 3180 Guns 6653 | 206 521 599 167 . 797 1015 213 . 55 137 79 163 . 463 560 28 . 361 1126 . 163 . . Cannons 1355 | . . 510 . . . . . . . . . 29 . 213 136 . . . . . . . 467 Explosions 5824 | . 246 344 . . . 131 . . 630 . . . . 118 . . . . 515 94 1390 . 2356 Melee 4571 | . . . . . 496 164 86 1138 252 344 . . 331 436 138 528 . . . 303 . . 355 Ramming 112 | . 60 . 50 . . . . . . . . . . . . . . . . . . . 2 Kinetic 7183 | 84 489 1035 . . 797 1015 213 . 55 137 79 192 . 676 696 28 . 361 780 . 163 . 383 Thermal 1432 | 122 32 418 167 . . . . . . . . . . . . . . . 195 . 292 . 206 Explosive 1010 | . 246 . . . . 131 . . . . . . . 118 . . . . 515 . . . . Electromagnetic 3972 | . . . . . . . . . 630 . . . . . . . . . . 94 1098 . 2150 Impact . | . . . . . . . . . . . . . . . . . . . . . . . . Slashing 4571 | . . . . . 496 164 86 1138 252 344 . . 331 436 138 528 . . . 303 . . 355 Piercing . | . . . . . . . . . . . . . . . . . . . . . . . . Entropic 151 | . . . . . . . . . . . . . . . . . . . 151 . . . . Phasic 84 | . . . . . . . . . . . . . . . . . . . . . . . 84 Highest Corruption 33 | . . . . . 2 2 9 21 8 3 3 5 5 10 2 2 2 6 16 1 33 . 19 Average Corruption 4 | . . . . . 2 2 6 8 7 2 3 4 5 5 1 2 2 2 7 1 3 . 3 Corruption Purged 27 | . . . . . . . . 27 . . . . . . . . . . . . . . . Corruption Blocked . | . . . . . . . . . . . . . . . . . . . . . . . . Effects 237 | . . . . . 17 17 16 44 12 3 10 11 10 19 8 10 6 1 28 4 10 . 11 Message Errors 60 | . . . . . 5 4 5 16 4 2 1 1 1 3 2 2 . . 9 . 4 . 1 Matter Fused 55 | . . . . . 4 5 4 10 2 1 4 3 1 4 2 3 1 1 5 . 2 . 3 Heat Flow Errors 26 | . . . . . 3 1 3 4 . . . . 2 3 1 2 1 . 4 . 1 . 1 Energy Discharges 21 | . . . . . . 1 2 4 2 . 1 2 1 2 . . . . 2 2 2 . . Parts Rejected 4 | . . . . . . 1 1 . . . . . . 1 . . . . . . . . 1 Parts Fused 7 | . . . . . 1 . . . . . . . . 1 2 1 1 . . 1 . . . Data Loss (minor) 30 | . . . . . 3 2 1 6 . . 1 4 2 4 1 . 1 . 2 1 . . 2 Data Loss (major) 10 | . . . . . . 2 . 2 . . 2 . . . . . . . 4 . . . . Misfires 11 | . . . . . 1 1 . 2 3 . . . . 1 . 1 2 . . . . . . Alerts 8 | . . . . . . . . . 1 . . 1 3 . . 1 . . 1 . . . 1 Misdirections 2 | . . . . . . . . . . . . . . . . . . . . . 1 . 1 Weapon Failures 3 | . . . . . . . . . . . 1 . . . . . . . 1 . . . 1 Overload Shots 2 | . . . . . . . 2 . . . . . . . . . . . . . . . . Overflow Damage 1140 | . . 59 . . 36 . . 333 7 43 . . 78 97 33 214 . . . 73 . . 167 Projectiles 77 | . . . . . . . . . . . . . . . . . . . . . . . 77 Explosions 169 | . . 59 . . . . . . 7 . . . . 23 . . . . . . . . 80 Melee 894 | . . . . . 36 . . 333 . 43 . . 78 74 33 214 . . . 73 . . 10 Knockbacks 10 | . . 5 . . . . . . . . . . . . 2 . . . . . . . 3 Impact . | . . . . . . . . . . . . . . . . . . . . . . . . Kinetic 9 | . . 5 . . . . . . . . . . . . 2 . . . . . . . 2 Secondary 1 | . . . . . . . . . . . . . . . . . . . . . . . 1 Self-Inflicted Damage 949 | . . 36 . . . . . . 103 . . . . . . . . . . . 499 . 311 Shots 36 | . . 1 . . . . . . 1 . . . . . . . . . . . 20 . 14 Rammed 9 | . 9 . . . . . . . . . . . . . . . . . . . . . . Targets Rammed 18 | . 11 . 6 . . . . . . . . . . . . . . . . . . . 1 Kicked 6 | . . . 6 . . . . . . . . . . . . . . . . . . . . Crushed 3 | . 2 . . . . . . . . . . . . . . . . . . . . . 1 Highest Temperature 723 | . 2 4 120 . 267 219 200 269 . 51 99 162 247 723 228 143 125 231 276 33 351 . 173 Average Temperature 81 | . 2 4 52 . 63 37 70 112 . 19 31 43 115 160 70 61 70 81 73 15 110 . 32 Received Heat Transfer 1536 | . 90 105 . . 216 170 4 . 24 9 39 . . 452 . . . 48 334 . . . 45 Effects 10 | . . . . . 1 . . . . . . . . 3 2 . . 1 . . 3 . . Shutdowns 2 | . . . . . . . . . . . . . . 1 . . . . . . 1 . . Energy Bleed 1 | . . . . . 1 . . . . . . . . . . . . . . . . . . Interference 4 | . . . . . . . . . . . . . . . 2 . . 1 . . 1 . . Matter Decay 1 | . . . . . . . . . . . . . . . . . . . . . 1 . . Damage (major) 2 | . . . . . . . . . . . . . . 2 . . . . . . . . . Siege Activations 1 | . . . . . . . . . . . . . . . . . . . 1 . . . . Total Turns 16 | . . . . . . . . . . . . . . . . . . . 16 . . . . Longest Duration 16 | . . . . . . . . . . . . . . . . . . . 16 . . . . Martial Activations . | . . . . . . . . . . . . . . . . . . . . . . . . Shielding Activations . | . . . . . . . . . . . . . . . . . . . . . . . . Robots Disrupted . | . . . . . . . . . . . . . . . . . . . . . . . . Combat Hostiles . | . . . . . . . . . . . . . . . . . . . . . . . . Robots Corrupted 20 | . . . . . . . . . 1 . . . . . . . . . . 2 6 . 11 Combat Hostiles 18 | . . . . . . . . . . . . . . . . . . . . 2 6 . 10 Parts Fried 44 | . . . . . . . . . 3 . . . . . . . . . 1 3 18 . 19 Impact Corruptions . | . . . . . . . . . . . . . . . . . . . . . . . . Robots Melted . | . . . . . . . . . . . . . . . . . . . . . . . . Combat Hostiles . | . . . . . . . . . . . . . . . . . . . . . . . . Parts Melted 2 | 1 . . . . . . . . . . . . . . . . . . 1 . . . . Heat Transferred 2200 | 275 75 500 200 . . . . . . . . . . . . . . . 650 . 200 . 300 Parts Sabotaged 2 | . . . . . . . . . . . . . . . . . . 2 . . . . . Parts Stolen . | . . . . . . . . . . . . . . . . . . . . . . . . Parts Stripped 10 | . . . . . . . . . . . . . . . . 10 . . . . . . . Power Chain Reactions 8 | . . . . . . . . . . . . . . . . . . . . . 4 . 4 Alert | -11 -10 -10 -8 -8 -6 -6 -6 -6 -6 -5 -5 -5 -5 -4 -4 -4 -4 -4 -3 -3 -3 -2 -1 ------- Run | Yrd Mat Sub Rec Scr Fac Ext Cet Arc Hub Fac Upp Upp Zhi Pro Fac Upp Upp War Pro Res Qua Res Acc Maximum Alert Level 3 | . . . . . . 2 1 . 3 2 . . . . . . . . . . 1 . 1 Low Security (%) 85 | 100 100 . 100 . 100 78 7 100 65 19 . . . . 100 . . . . 100 97 100 74 Level 1 11 | . . . . . . 2 92 . 25 70 . . . . . . . . . . 2 . 25 Level 2 2 | . . . . . . 18 . . 6 9 . . . . . . . . . . . . . Level 3 . | . . . . . . . . . 2 . . . . . . . . . . . . . . Level 4 . | . . . . . . . . . . . . . . . . . . . . . . . . Level 5 . | . . . . . . . . . . . . . . . . . . . . . . . . High Security . | . . . . . . . . . . . . . . . . . . . . . . . . Max Security . | . . . . . . . . . . . . . . . . . . . . . . . . Peak Influence 874 | 10 151 . 80 . 92 539 337 187 874 427 . . . . 79 . . . . 57 224 117 350 Initial 427 | . . . 77 . . 16 290 87 . 427 . . . . . . . . . . 14 117 64 Average 83 | 1 40 . 22 . 45 132 255 53 171 291 . . . . 15 . . . . 7 73 111 153 Influence Increases 6930 | 30 326 195 212 . 598 1040 356 280 1118 280 110 151 5 162 220 10 . 80 320 220 603 . 614 Destroy 0b10 Robot/C 3000 | . 180 120 60 . 320 520 160 80 260 120 80 100 . 120 80 . . 80 240 40 180 . 260 Destroy 0b10 Robot/NC 350 | 30 45 . 20 . 10 25 10 45 50 5 . . 5 5 . 10 . . . 5 5 . 80 Destroy Leader 536 | . 48 . . . 92 66 . . 84 40 . 20 . 10 20 . . . 20 2 70 . 64 Allied During Kill 1199 | . . . . . 53 402 163 125 309 59 30 31 . 27 . . . . . . . . . Successful Hack 109 | . 3 . 12 . 17 16 . . . 7 . . . . . . . . . 54 . . . Select Force Hacks 120 | . . . 120 . . . . . . . . . . . . . . . . . . . . Disable Machine 675 | . 15 . . . 30 . 15 30 285 . . . . . 60 . . . . 30 135 . 75 Destroy Structure 536 | . 20 . . . 31 11 8 . 130 34 . . . . 60 . . . . 44 108 . 90 Partial Spotted 75 | . . . . . . . . . . . . . . . . . . . . . 45 . 30 Lose Combat Pursuer 330 | . 15 75 . . 45 . . . . 15 . . . . . . . . 60 45 60 . 15 Influence Decreases 6588 | 30 326 33 352 22 565 554 657 498 244 895 347 173 5 162 220 10 . 80 320 194 421 101 379 Entered New Map 1179 | . . . 85 22 . 17 229 131 . 447 97 5 . . . . . . . . 12 91 43 Time Decay 4479 | 30 326 23 267 . 442 302 278 327 144 398 230 148 5 162 220 10 . 80 268 194 329 10 286 Lost Part 232 | . . 10 . . 20 . 10 . . 10 . . . . . . . . 52 . 80 . 50 Lost Ally 597 | . . . . . 103 134 140 40 100 40 20 20 . . . . . . . . . . . Purge Threat 101 | . . . . . . 101 . . . . . . . . . . . . . . . . . Squads Dispatched 45 | . 2 . . . 9 4 . . 7 3 . . . . 4 . . . 1 7 3 . 5 Investigation 18 | . 1 . . . 4 2 . . 3 1 . . . . 1 . . . . 3 3 . . Extermination 6 | . . . . . 2 . . . . 1 . . . . 2 . . . . . . . 1 Reinforcement 18 | . 1 . . . 1 2 . . 4 1 . . . . 1 . . . . 4 . . 4 Assault 3 | . . . . . 2 . . . . . . . . . . . . . 1 . . . . Garrison . | . . . . . . . . . . . . . . . . . . . . . . . . Intercept . | . . . . . . . . . . . . . . . . . . . . . . . . Searches Triggered . | . . . . . . . . . . . . . . . . . . . . . . . . Construction Impeded 5 | . . . . . . 1 . . 1 . . . . . . . . . . . . . 3 Haulers Reinforced 3 | . . . . . . . . . . . . . . . . . . . . 3 . . . Active Scanning Responses . | . . . . . . . . . . . . . . . . . . . . . . . . Cargo Convoy Interrupts 1 | . . . . . 1 . . . . . . . . . . . . . . . . . . Stealth | -11 -10 -10 -8 -8 -6 -6 -6 -6 -6 -5 -5 -5 -5 -4 -4 -4 -4 -4 -3 -3 -3 -2 -1 --------- Run | Yrd Mat Sub Rec Scr Fac Ext Cet Arc Hub Fac Upp Upp Zhi Pro Fac Upp Upp War Pro Res Qua Res Acc Distress Signals 17 | . 2 . . . . 2 2 . 1 1 . . . . 1 . . 1 . 4 . . 3 Communications Jammed . | . . . . . . . . . . . . . . . . . . . . . . . . Distress Signals . | . . . . . . . . . . . . . . . . . . . . . . . . Times Spotted 254 | . 17 22 . . 18 29 10 9 10 3 2 5 . 6 8 . 1 32 30 12 14 . 26 Peak Tracking Total 19 | . 3 6 . . 4 5 5 1 4 2 1 3 . 2 3 . 1 19 8 5 5 . 7 Tactical Retreats 13 | . 1 3 . . 1 . . . . 1 . . . . . . . . 4 1 1 . 1 Traps | -11 -10 -10 -8 -8 -6 -6 -6 -6 -6 -5 -5 -5 -5 -4 -4 -4 -4 -4 -3 -3 -3 -2 -1 ------- Run | Yrd Mat Sub Rec Scr Fac Ext Cet Arc Hub Fac Upp Upp Zhi Pro Fac Upp Upp War Pro Res Qua Res Acc Traps Triggered 20 | . 2 1 . . . 7 . . . . . . . . . . . . . 3 3 . 4 Indirectly 3 | . . . . . . . . . . . . . . . . . . . . 2 . . 1 Trap Hack Attempts . | . . . . . . . . . . . . . . . . . . . . . . . . Triggered . | . . . . . . . . . . . . . . . . . . . . . . . . Disarmed . | . . . . . . . . . . . . . . . . . . . . . . . . Reprogrammed . | . . . . . . . . . . . . . . . . . . . . . . . . Reused 4 | . . . . . . . . . . . . . . . . . . . 4 . . . . Traps Extracted . | . . . . . . . . . . . . . . . . . . . . . . . . Installed 6 | . . . . . . . . . . . . . . . . . . . 6 . . . . Triggered 4 | . . . . . . . . . . . . . . . . . . . 4 . . . . Most Traps Carried 8 | . . . . . . . . . . . . . . 5 5 8 8 8 8 . . . . Machines | -11 -10 -10 -8 -8 -6 -6 -6 -6 -6 -5 -5 -5 -5 -4 -4 -4 -4 -4 -3 -3 -3 -2 -1 ---------- Run | Yrd Mat Sub Rec Scr Fac Ext Cet Arc Hub Fac Upp Upp Zhi Pro Fac Upp Upp War Pro Res Qua Res Acc Machines Disabled 54 | . 1 4 . . 2 1 2 2 19 . . . . . 4 . . 3 . 2 9 . 5 Max in Single Turn 14 | . 1 3 . . 1 . 1 1 14 . . . . . 1 . . 2 . 1 2 . 1 Garrison Access 2 | . . . . . 1 . . . 1 . . . . . . . . . . . . . . Network Hub 1 | . . . . . . . . . 1 . . . . . . . . . . . . . . Machines Repaired . | . . . . . . . . . . . . . . . . . . . . . . . . Machines Dismantled . | . . . . . . . . . . . . . . . . . . . . . . . . Machines Sabotaged . | . . . . . . . . . . . . . . . . . . . . . . . . Overloaded Fab Kills . | . . . . . . . . . . . . . . . . . . . . . . . . Hacking | -11 -10 -10 -8 -8 -6 -6 -6 -6 -6 -5 -5 -5 -5 -4 -4 -4 -4 -4 -3 -3 -3 -2 -1 --------- Run | Yrd Mat Sub Rec Scr Fac Ext Cet Arc Hub Fac Upp Upp Zhi Pro Fac Upp Upp War Pro Res Qua Res Acc Machines Accessed 70 | . 10 . 9 5 7 14 . . 4 3 . . 4 . 3 . 1 1 . 5 2 . 2 Terminals 38 | . 7 . 5 . 3 13 . . 3 1 . . . . 1 . 1 . . 1 1 . 2 Fabricators 2 | . . . . . . . . . . . . . . . 1 . . . . 1 . . . Repair Stations 5 | . 1 . . . 1 . . . . 1 . . . . . . . . . 1 1 . . Recycling Units 10 | . 2 . 4 . 2 1 . . . 1 . . . . . . . . . . . . . Scanalyzers . | . . . . . . . . . . . . . . . . . . . . . . . . Garrison Access 5 | . . . . . 1 . . . 1 . . . . . 1 . . . . 2 . . . Total Hacks 212 | . 34 . 26 46 10 26 . . 10 9 . . 17 . 7 . 3 1 . 16 3 . 4 Successful 125 | . 19 . 15 46 5 11 . . 2 2 . . 17 . 1 . 3 1 . 3 . . . Failed 87 | . 15 . 11 . 5 15 . . 8 7 . . . . 6 . . . . 13 3 . 4 Catastrophic 15 | . 1 . . . 1 2 . . 2 1 . . . . 2 . . . . 4 1 . 1 Database Lockouts . | . . . . . . . . . . . . . . . . . . . . . . . . Manual 85 | . 23 . 17 . 8 10 1 . 9 8 . . . . . . . . . 7 . . 2 Terminals 105 | . 25 . 17 . 5 25 . . 9 7 . . . . 5 . 3 . . 3 2 . 4 Fabricators 6 | . . . . . . . . . . . . . . . 1 . . . . 5 . . . Repair Stations 8 | . 3 . . . 1 . . . . 1 . . . . . . . . . 2 1 . . Recycling Units 20 | . 6 . 9 . 3 1 . . . 1 . . . . . . . . . . . . . Scanalyzers . | . . . . . . . . . . . . . . . . . . . . . . . . Garrison Access 9 | . . . . . 1 . . . 1 . . . . . 1 . . . . 6 . . . Terminal Hacks 90 | . 7 . 4 46 1 9 . . . 1 . . 17 . . . 3 1 . 1 . . . Record 55 | . . . 2 45 . . . . . . . . 5 . . . 3 . . . . . . Part Schematic 4 | . . . . . . . . . . . . . 4 . . . . . . . . . . Robot Analysis 10 | . 6 . . . . . . . . . . . 4 . . . . . . . . . . Prototype ID Bank 5 | . . . 1 . . . . . . . . . 4 . . . . . . . . . . Open Door 8 | . . . . 1 1 5 . . . . . . . . . . . 1 . . . . . Branch Access Points 1 | . . . . . . . . . . . . . . . . . . . . 1 . . . Recycling Unit Index 1 | . . . . . . . . . . 1 . . . . . . . . . . . . . Alert Level 3 | . 1 . . . . 2 . . . . . . . . . . . . . . . . . Unreport Threat 1 | . . . . . . 1 . . . . . . . . . . . . . . . . . Recall Investigation 1 | . . . . . . 1 . . . . . . . . . . . . . . . . . Hauler Manifests 1 | . . . 1 . . . . . . . . . . . . . . . . . . . . Fabricator Hacks 2 | . . . . . . . . . . . . . . . 1 . . . . 1 . . . Network Status 1 | . . . . . . . . . . . . . . . 1 . . . . . . . . Build 1 | . . . . . . . . . . . . . . . . . . . . 1 . . . Repair Station Hacks 2 | . 2 . . . . . . . . . . . . . . . . . . . . . . Scan Component 1 | . 1 . . . . . . . . . . . . . . . . . . . . . . Repair 1 | . 1 . . . . . . . . . . . . . . . . . . . . . . Recycling Unit Hacks 5 | . 2 . 3 . . . . . . . . . . . . . . . . . . . . Retrieve Components 5 | . 2 . 3 . . . . . . . . . . . . . . . . . . . . Scanalyzer . | . . . . . . . . . . . . . . . . . . . . . . . . Garrison Access Hacks 1 | . . . . . . . . . 1 . . . . . . . . . . . . . . Seal Access 1 | . . . . . . . . . 1 . . . . . . . . . . . . . . Unauthorized Hacks 25 | . 8 . 8 . 4 2 . . 1 1 . . . . . . . . . 1 . . . Terminals 14 | . 7 . 4 . 1 1 . . 1 . . . . . . . . . . . . . . Botnet 4 | . 1 . 1 . 1 1 . . . . . . . . . . . . . . . . . Skim 9 | . 6 . 3 . . . . . . . . . . . . . . . . . . . . Sabotage 1 | . . . . . . . . . 1 . . . . . . . . . . . . . . Fabricators . | . . . . . . . . . . . . . . . . . . . . . . . . Repair Stations 2 | . . . . . 1 . . . . . . . . . . . . . . 1 . . . Patch 2 | . . . . . 1 . . . . . . . . . . . . . . 1 . . . Recycling Units 9 | . 1 . 4 . 2 1 . . . 1 . . . . . . . . . . . . . Recyclers 1 | . 1 . . . . . . . . . . . . . . . . . . . . . . Tunnel 4 | . . . 4 . . . . . . . . . . . . . . . . . . . . Scrapoids 4 | . . . . . 2 1 . . . 1 . . . . . . . . . . . . . Scanalyzers . | . . . . . . . . . . . . . . . . . . . . . . . . Garrison Access . | . . . . . . . . . . . . . . . . . . . . . . . . Data Cores Recovered . | . . . . . . . . . . . . . . . . . . . . . . . . Used . | . . . . . . . . . . . . . . . . . . . . . . . . Hacking Detections 43 | . 7 . 6 . 3 11 . . 3 2 . . . . 3 . . . . 4 2 . 2 Full Trace Events 7 | . . . 3 . 1 . . . 2 . . . . . 1 . . . . . . . . Feedback Events . | . . . . . . . . . . . . . . . . . . . . . . . . Feedback Blocked . | . . . . . . . . . . . . . . . . . . . . . . . . Robot Schematics Acquired . | . . . . . . . . . . . . . . . . . . . . . . . . Robots Built . | . . . . . . . . . . . . . . . . . . . . . . . . Authchips . | . . . . . . . . . . . . . . . . . . . . . . . . Time . | . . . . . . . . . . . . . . . . . . . . . . . . Total Robot Build Rating . | . . . . . . . . . . . . . . . . . . . . . . . . Part Schematics Acquired 4 | . . . . . . . . . . . . . 4 . . . . . . . . . . Parts Built 1 | . . . . . . . . . . . . . . . . . . . . 1 . . . Authchips . | . . . . . . . . . . . . . . . . . . . . . . . . Time 68 | . . . . . . . . . . . . . . . . . . . . 68 . . . Total Part Build Rating 8 | . . . . . . . . . . . . . . . . . . . . 8 . . . Parts Repaired 1 | . 1 . . . . . . . . . . . . . . . . . . . . . . Time 26 | . 26 . . . . . . . . . . . . . . . . . . . . . . Parts Recycled . | . . . . . . . . . . . . . . . . . . . . . . . . Recycled Matter . | . . . . . . . . . . . . . . . . . . . . . . . . Retrieved Matter . | . . . . . . . . . . . . . . . . . . . . . . . . Retrieved Components 37 | . 16 . 21 . . . . . . . . . . . . . . . . . . . . Parts Scanalyzed . | . . . . . . . . . . . . . . . . . . . . . . . . Part Schematics Acquired . | . . . . . . . . . . . . . . . . . . . . . . . . Parts Damaged . | . . . . . . . . . . . . . . . . . . . . . . . . Bothacking | -11 -10 -10 -8 -8 -6 -6 -6 -6 -6 -5 -5 -5 -5 -4 -4 -4 -4 -4 -3 -3 -3 -2 -1 ------------ Run | Yrd Mat Sub Rec Scr Fac Ext Cet Arc Hub Fac Upp Upp Zhi Pro Fac Upp Upp War Pro Res Qua Res Acc Used RIF Installer . | . . . . . . . . . . . . . . . . . . . . . . . . Robots Hacked . | . . . . . . . . . . . . . . . . . . . . . . . . Non-combat . | . . . . . . . . . . . . . . . . . . . . . . . . Combat . | . . . . . . . . . . . . . . . . . . . . . . . . Robot Hacks Applied . | . . . . . . . . . . . . . . . . . . . . . . . . Relay Couplers Released 1 | . . . . . 1 . . . . . . . . . . . . . . . . . . Machine Destruction 1 | . . . . . 1 . . . . . . . . . . . . . . . . . . Fabnet Peak Effective % . | . . . . . . . . . . . . . . . . . . . . . . . . Robots Rewired 6 | . . . . . . 6 . . . . . . . . . . . . . . . . . Allies Hacked 1 | . . . . . 1 . . . . . . . . . . . . . . . . . . Hacks Repelled . | . . . . . . . . . . . . . . . . . . . . . . . . Allies | -11 -10 -10 -8 -8 -6 -6 -6 -6 -6 -5 -5 -5 -5 -4 -4 -4 -4 -4 -3 -3 -3 -2 -1 -------- Run | Yrd Mat Sub Rec Scr Fac Ext Cet Arc Hub Fac Upp Upp Zhi Pro Fac Upp Upp War Pro Res Qua Res Acc Total Allies 38 | . . . . . 10 18 5 . . 5 . . . . . . . . . . . . . Largest Group 15 | . . . . . 8 15 15 11 8 5 5 3 2 2 . . . . . . . . . Highest-Rated Group 931 | . . . . . 224 585 931 802 578 235 235 135 94 94 . . . . . . . . . Highest-Rated Ally 159 | . . . . . 32 159 159 159 96 96 47 47 47 47 . . . . . . . . . Total Orders 9 | . . . . 3 4 . . . 1 . . . 1 . . . . . . . . . . STAY 2 | . . . . . . . . . 1 . . . 1 . . . . . . . . . . EXPLORE 3 | . . . . 1 2 . . . . . . . . . . . . . . . . . . RETURN 4 | . . . . 2 2 . . . . . . . . . . . . . . . . . . Ally Attacks 509 | . . . . . 52 146 95 18 75 33 31 18 . 41 . . . . . . . . . Total Damage 12201 | . . . . . 855 3112 2086 643 2623 904 568 374 . 1036 . . . . . . . . . Kills 69 | . . . . . 6 21 10 4 17 4 3 2 . 2 . . . . . . . . . Allies Corrupted 1 | . . . . . . . . . 1 . . . . . . . . . . . . . . Allies Melted 3 | . . . . . . . . . 2 . . . . . . . . 1 . . . . . Intel | -11 -10 -10 -8 -8 -6 -6 -6 -6 -6 -5 -5 -5 -5 -4 -4 -4 -4 -4 -3 -3 -3 -2 -1 ------- Run | Yrd Mat Sub Rec Scr Fac Ext Cet Arc Hub Fac Upp Upp Zhi Pro Fac Upp Upp War Pro Res Qua Res Acc Active Infowar (turns) 13942 | 110 2091 1 . . 1564 59 . . 301 941 481 431 286 996 866 961 589 1216 616 1227 552 38 616 Sensors 8648 | . . . . . 1564 59 . . 301 825 . . . . 836 961 589 1216 . 1103 552 38 604 Terrain 2181 | . . . . . . . . . . . . . . . . . . . . 1227 302 36 616 Structural 7052 | . . . . . 58 . . . . 934 481 431 286 996 866 961 589 834 616 . . . . Seismic 2202 | 110 2091 1 . . . . . . . . . . . . . . . . . . . . . Jamming 2 | . . . . . . . . . . . . 2 . . . . . . . . . . . Robot Analysis Total 10 | . 6 . . . . . . . . . . . 4 . . . . . . . . . . Derelict Logs Recovered 9 | . . . . 5 . . . . . . . 1 . 1 . 2 . . . . . . . Drone Launches 9 | . . . . 6 3 . . . . . . . . . . . . . . . . . . Drone Recoveries 8 | . . . . 6 2 . . . . . . . . . . . . . . . . . . Exploration | -11 -10 -10 -8 -8 -6 -6 -6 -6 -6 -5 -5 -5 -5 -4 -4 -4 -4 -4 -3 -3 -3 -2 -1 ------------- Run | Yrd Mat Sub Rec Scr Fac Ext Cet Arc Hub Fac Upp Upp Zhi Pro Fac Upp Upp War Pro Res Qua Res Acc Turns Passed 26493 | 222 2091 2191 1446 4357 1569 1479 603 1253 455 941 481 431 288 1064 866 961 589 1315 911 1228 1087 39 626 Spaces Moved 13436 | 100 957 1112 698 2229 626 739 296 377 266 501 302 272 198 682 418 563 385 843 497 616 478 20 261 Core 242 | 15 . 10 . 196 . . . . . . . . . . . . . . . . . . 21 Treads 3425 | 85 957 693 . . 305 8 . 281 . . 1 . . . 19 . . . . 338 478 20 240 Legs 3139 | . . 408 698 2033 . . . . . . . . . . . . . . . . . . . Wheels 6630 | . . 1 . . 321 731 296 96 266 501 301 272 198 682 399 563 385 843 497 278 . . . Hover . | . . . . . . . . . . . . . . . . . . . . . . . . Flight . | . . . . . . . . . . . . . . . . . . . . . . . . Fastest Speed 50 | 50 160 110 200 50 160 120 140 150 150 160 140 140 130 140 140 140 140 110 120 120 165 166 50 Average Speed 162 | 143 160 167 200 176 170 169 142 217 150 160 147 140 130 140 144 140 140 139 129 169 165 166 188 Slowest Speed 600 | 160 160 600 200 200 180 243 150 240 150 160 320 140 140 150 238 140 140 140 140 245 166 166 330 Overloaded Moves . | . . . . . . . . . . . . . . . . . . . . . . . . Propulsion Burnouts . | . . . . . . . . . . . . . . . . . . . . . . . . Robots Hopped 1 | . . . . . . 1 . . . . . . . . . . . . . . . . . Potential Cave-ins 8 | . . . . . 4 . . . . . . . . . . . . 4 . . . . . Cave-ins Triggered . | . . . . . . . . . . . . . . . . . . . . . . . . Teleports 1 | . . . . . . . . . . . . . . . . . . . 1 . . . . Exploration Rate (%) 52 | 5 98 31 95 95 21 88 76 98 32 8 54 44 60 88 14 66 64 82 52 21 48 1 10 Regions Visited 23 Branch Regions 16 Pre-discovered Areas 14 | . . . 4 7 . . . . . . . . 3 . . . . . . . . . . Known Exits Taken 18 | . 1 . . 1 1 1 1 1 1 1 1 . 1 1 1 1 1 . 1 1 1 1 . Unknown Exits Taken 5 | 1 . 1 1 . . . . . . . . 1 . . . . . 1 . . . . . Scrap Searched 29 | . . 9 . 8 . . . . . . . 2 . 3 . 2 4 . 1 . . . . Spaces Dug 183 | . 8 . . . 33 . . . 5 12 4 8 . 6 18 7 2 2 1 34 34 . 9 Terrain Destroyed 727 | . 20 50 . . 57 8 . . 165 14 11 20 . 28 35 11 5 13 70 131 59 . 30 Melee 92 | . . . . . 22 . . . 5 8 2 5 . 4 13 7 2 2 . 11 4 . 7 Projectile 169 | . . 10 . . . . . . 5 6 9 15 . 14 22 4 3 11 28 1 28 . 13 AOE 466 | . 20 40 . . 35 8 . . 155 . . . . 10 . . . . 42 119 27 . 10 Terrain Rammed . | . . . . . . . . . . . . . . . . . . . . . . . . Walls Destroyed . | . . . . . . . . . . . . . . . . . . . . . . . . Machines Disabled . | . . . . . . . . . . . . . . . . . . . . . . . . Actions | -11 -10 -10 -8 -8 -6 -6 -6 -6 -6 -5 -5 -5 -5 -4 -4 -4 -4 -4 -3 -3 -3 -2 -1 --------- Run | Yrd Mat Sub Rec Scr Fac Ext Cet Arc Hub Fac Upp Upp Zhi Pro Fac Upp Upp War Pro Res Qua Res Acc Total 17271 | 151 1445 1349 730 2657 1031 910 467 791 303 610 326 296 222 745 623 716 435 948 699 753 712 25 327 Wait 2533 | 30 408 117 . 363 299 45 124 383 17 65 1 2 . 8 148 129 39 45 126 40 144 . . Move 13410 | 99 956 1111 697 2228 625 736 295 376 265 500 301 271 197 681 417 562 384 842 496 615 477 19 260 Hop 1 | . . . . . . 1 . . . . . . . . . . . . . . . . . Pick Up 188 | 2 18 24 10 33 14 6 11 4 . 6 1 2 3 3 4 2 2 8 6 20 7 . 2 Fast Attach 80 | 7 2 5 . 4 5 6 3 5 1 1 6 . 5 5 2 . 2 6 2 4 6 . 3 Attach 66 | . . 5 . 5 11 . 2 3 1 4 . . . . 1 . . 2 13 11 3 3 2 Detach 17 | . . . . 3 3 . . . . 1 . . . . . . . . 2 4 3 1 . Swap 145 | 1 6 8 4 1 6 19 7 2 3 5 2 2 5 11 11 4 2 17 9 9 3 2 6 Drop 182 | . 7 18 6 20 10 19 15 5 2 6 7 2 8 9 6 2 4 14 2 10 10 . . Fire 398 | 12 37 50 7 . 24 32 9 . 6 6 6 12 . 18 14 4 . 12 33 25 55 . 36 Melee 170 | . . . . . 34 4 1 13 8 16 2 5 4 10 20 13 2 2 . 15 4 . 17 Ram . | . . . . . . . . . . . . . . . . . . . . . . . . Kick 6 | . . . 6 . . . . . . . . . . . . . . . . . . . . Crush 12 | . 11 . . . . . . . . . . . . . . . . . . . . . 1 Escape Stasis 12 | . . . . . . 12 . . . . . . . . . . . . . . . . . Rewire 34 | . . . . . . 30 . . . . . . . . . . . . 4 . . . . Trap 6 | . . . . . . . . . . . . . . . . . . . 6 . . . . Miscellaneous 11 | . . 11 . . . . . . . . . . . . . . . . . . . . . Route ------- -11/Scrapyard -10/Materials (discovered 6 exits: *Mat x3 / [*Min x2] / *Sub) -10/Subcaves (discovered 2 exits: [*Mat] / *Rec) -8/Recycling (discovered 2 exits: *Fac / *Scr) -8/Scraptown (discovered 2 exits: *Fac x2) -6/Factory (discovered 5 exits: Fac x2 / Low x2 / *Ext) -6/Extension (discovered 2 exits: *Fac / *Cet) -6/Cetus (discovered 2 exits: *Fac / *Arc) -6/Archives (discovered 3 exits: *Fac / *Hub x2) -6/Hub_04(d) -5/Factory (discovered 2 exits: *Upp x2) -5/Upper Caves -5/Upper Caves -5/Zhirov -4/Proximity Caves -4/Factory (discovered 2 exits: *Res / *Upp) -4/Upper Caves -4/Upper Caves (discovered 2 exits: Res / *War) -4/Warlord -3/Proximity Caves -3/Research (discovered 3 exits: *Res / *Qua x2) -3/Quarantine -2/Research -1/Access To Epsilon Eridani History --------- Turn | Location | Event 17 | -11/Scrapyard | Discovered new exit (range 15) 223 | -11/Scrapyard | Entered Materials 346 | -10/Materials | Build established: Mutant 971 | -10/Materials | Discovered new exit (range 4) 1000 | -10/Materials | Discovered new exit (range 16) 1202 | -10/Materials | Discovered new exit (range 7) 1396 | -10/Materials | Discovered new exit (range 14) 1602 | -10/Materials | Discovered new exit (range 3) 1770 | -10/Materials | Learned Materials stockpile data 1811 | -10/Materials | Repaired Lgt. Treads 1822 | -10/Materials | Learned 4 Recycling zone layouts 1862 | -10/Materials | Learned Storage stockpile data 1914 | -10/Materials | Identified exit to Materials 1945 | -10/Materials | Identified exit to Subcaves 1984 | -10/Materials | Learned location of 3 exits from Materials 2031 | -10/Materials | Learned Storage trap positions 2314 | -10/Materials | Entered Subcaves 2315 | -10/Subcaves | Approached by a straggling Scientist 3555 | -10/Subcaves | Discovered new exit (range 6) 3584 | -10/Subcaves | A swath of the cavern ceiling suddenly collapsed 3625 | -10/Subcaves | A swath of the cavern ceiling suddenly collapsed 3644 | -10/Subcaves | A Subdweller sparked back to life 3644 | -10/Subcaves | A Subdweller sparked back to life 3644 | -10/Subcaves | A Subdweller sparked back to life 3645 | -10/Subcaves | Ambushed by Subdweller buried in earth 3667 | -10/Subcaves | Core integrity fell below 50% 3725 | -10/Subcaves | Lost 5 parts (4n1u) 3750 | -10/Subcaves | Found Prototype Leg 3750 | -10/Subcaves | Identified Cargo Legs 3751 | -10/Subcaves | Attached Cargo Legs, gained temporary slots: Utility x2 4007 | -10/Subcaves | Build established: Subdweller-Mutant 4469 | -10/Subcaves | Ambushed by Subdweller buried in earth 4477 | -10/Subcaves | Discovered new exit (range 12) 4480 | -10/Subcaves | Core integrity fell below 20% 4505 | -10/Subcaves | Entered Recycling 4506 | -8/Recycling | Met a Zionite searching for Scraptown 4506 | -8/Recycling | Identified exit to Factory 5901 | -8/Recycling | Scanned before Scraplab entrance 5929 | -8/Recycling | Entered Scraplab 5947 | -8/Recycling | Discovered new exit (range 3) 5951 | -8/Recycling | Entered Scraptown 6273 | -8/Scraptown | Scanned Subdweller tech in exchange for log data 6277 | -8/Scraptown | Learned location of Zion (-7) 6279 | -8/Scraptown | Learned Factory stockpile data 6283 | -8/Scraptown | Learned Factory security intel 6285 | -8/Scraptown | Learned Research terminal intel 6287 | -8/Scraptown | Learned location of Warlord (-4) 6435 | -8/Scraptown | Visited UFD Registry 6435 | -8/Scraptown | Registered with UFD as "Technowalker" 6573 | -8/Scraptown | Guru changed UFD alias to "Megabox" 6651 | -8/Scraptown | Discovered exit to Factory (range 11) 6751 | -8/Scraptown | Visited Awakened 6837 | -8/Scraptown | Visited Junk Repository 6889 | -8/Scraptown | Visited LU-1G1's Boring Crew 6919 | -8/Scraptown | Visited A0-MCA Data Center 6931 | -8/Scraptown | Given a C rating by A0-MCA 6935 | -8/Scraptown | Found A0-MCA's Component Scanner 6976 | -8/Scraptown | Visited Curators Association 7018 | -8/Scraptown | Visited Infowarlord's Domain 7058 | -8/Scraptown | Visited Junk Repository 7112 | -8/Scraptown | Visited Observation Area 7156 | -8/Scraptown | Visited Science Testing Area 7192 | -8/Scraptown | Visited Sword Containment 7224 | -8/Scraptown | Visited Cartography Club 7792 | -8/Scraptown | Visited TADAMA 7828 | -8/Scraptown | Visited Shadow of the Wyrm 7966 | -8/Scraptown | Visited Cave Peace 8780 | -8/Scraptown | Delivered Scrap Shield to a Scientist 8939 | -8/Scraptown | Found Deep Structural Scanner 8945 | -8/Scraptown | Learned location of Lower Caves (-6) 8945 | -8/Scraptown | Learned location of Proximity Caves (-5) 8945 | -8/Scraptown | Learned location of Hub_04(d) (-6) 8945 | -8/Scraptown | Learned 16 Materials zone layouts 8945 | -8/Scraptown | Learned 8 Factory zone layouts 8945 | -8/Scraptown | Learned 20 Factory zone layouts 8945 | -8/Scraptown | Learned 12 Research zone layouts 8945 | -8/Scraptown | Learned 4 Mines zone layouts 8945 | -8/Scraptown | Learned 20 Lower Caves zone layouts 8945 | -8/Scraptown | Learned 8 Proximity Caves zone layouts 8945 | -8/Scraptown | Learned 20 Proximity Caves zone layouts 8945 | -8/Scraptown | Learned location of 1 exit from Lower Caves 8945 | -8/Scraptown | Learned location of 2 exits from Lower Caves 9099 | -8/Scraptown | Discovered exit to Factory (range 45) 9100 | -8/Scraptown | Build established: Mutant 9509 | -8/Scraptown | Found Exp. Terrain Scanner 9642 | -8/Scraptown | Visited Bundlers 10184 | -8/Scraptown | Met Optimus 10184 | -8/Scraptown | Accepted into 0bPrime 10308 | -8/Scraptown | Entered Factory 10308 | -6/Factory | Evolved 8 slots: Power x1, Propulsion x2, Utility x4, Weapon x1 10309 | -6/Factory | Identified exit to Lower Caves 10310 | -6/Factory | Identified exit to Extension 10310 | -6/Factory | Identified exit to Factory 10618 | -6/Factory | Build established: Scavenger-Mutant 11246 | -6/Factory | Build established: Mutant 11253 | -6/Factory | Cargo convoy interrupted 11263 | -6/Factory | Scrapoids reinforcements arrived? 11480 | -6/Factory | Scrapoid reinforcements arrived 11549 | -6/Factory | Lost 3 allies 11774 | -6/Factory | Build established: Commander-Mutant 11877 | -6/Factory | Entered Extension 11877 | -6/Extension | Accompanied by 4 allies 12280 | -6/Extension | Scrapoid reinforcements arrived 12510 | -6/Extension | Rescued a captive Derelict 12634 | -6/Extension | Rescued A7 12650 | -6/Extension | Rescued a captive Derelict 12884 | -6/Extension | Spotted B-75 Beast 12894 | -6/Extension | Allies destroyed B-75 Beast 12901 | -6/Extension | Spotted B-75 Beast 12907 | -6/Extension | Allies destroyed B-75 Beast 12919 | -6/Extension | Found Scrap Suit 12932 | -6/Extension | Lost 4 allies 12941 | -6/Extension | Found Scrap Suit 13060 | -6/Extension | Rescued a captive Derelict 13064 | -6/Extension | Rescued a captive Derelict 13253 | -6/Extension | Rescued a captive Derelict 13255 | -6/Extension | Rescued a captive Derelict 13275 | -6/Extension | Build established: Scavenger-Mutant 13300 | -6/Extension | Discovered exit to Factory (range 10) 13301 | -6/Extension | Discovered new exit (range 6) 13349 | -6/Extension | Identified exit to Cetus 13356 | -6/Extension | Entered Cetus 13356 | -6/Cetus | Accompanied by 14 allies (A7) 13361 | -6/Cetus | Acquired a Cetus Manufacturing Module code from A7 13383 | -6/Cetus | Spotted Cetus Guard 13383 | -6/Cetus | Spotted Cetus Guard 13386 | -6/Cetus | Spotted Cetus Guard 13386 | -6/Cetus | Spotted Cetus Guard 13402 | -6/Cetus | Allies destroyed Cetus Guard 13408 | -6/Cetus | Allies destroyed Cetus Guard 13409 | -6/Cetus | Allies destroyed Cetus Guard 13411 | -6/Cetus | Allies destroyed Cetus Guard 13435 | -6/Cetus | Lost 4 allies 13506 | -6/Cetus | Started Cetus Manufacturing Module 13531 | -6/Cetus | Manufactured an Enhanced Grunt 13556 | -6/Cetus | Manufactured an Enhanced Grunt 13581 | -6/Cetus | Manufactured an Enhanced Grunt 13606 | -6/Cetus | Manufactured an Enhanced Grunt 13631 | -6/Cetus | Manufactured an Enhanced Grunt 13654 | -6/Cetus | Escorted A7 to Cetus Mainframe 13681 | -6/Cetus | Discovered new exit (range 15) 13769 | -6/Cetus | Spotted Cetus Guard 13770 | -6/Cetus | Spotted Cetus Guard 13775 | -6/Cetus | Spotted Cetus Guard 13777 | -6/Cetus | Allies destroyed Cetus Guard 13779 | -6/Cetus | Allies destroyed Cetus Guard 13779 | -6/Cetus | Allies destroyed Cetus Guard 13806 | -6/Cetus | Discovered exit to Factory (range 15) 13809 | -6/Cetus | Lost 3 allies 13819 | -6/Cetus | Met Revision 17 13916 | -6/Cetus | Identified exit to Archives 13959 | -6/Cetus | Entered Archives 13959 | -6/Archives | Accompanied by 11 allies (A7) 13964 | -6/Archives | Received a hacking code to weaken MAIN.C 14391 | -6/Archives | System corruption reached 10% 14564 | -6/Archives | Discovered new exit (range 15) 14641 | -6/Archives | Discovered new exit (range 14) 14732 | -6/Archives | Discovered exit to Factory (range 13) 15186 | -6/Archives | Identified exit to Hub_04(d) 15212 | -6/Archives | Entered Hub_04(d) 15212 | -6/Hub_04(d) | Accompanied by 8 allies 15446 | -6/Hub_04(d) | Spotted B-75 Beast 15471 | -6/Hub_04(d) | Allies destroyed B-75 Beast 15496 | -6/Hub_04(d) | Lost 4 allies 15616 | -6/Hub_04(d) | Discovered exit to Factory (range 5) 15654 | -6/Hub_04(d) | Network Hub disabled 15667 | -6/Hub_04(d) | Entered Factory 15667 | -5/Factory | Accompanied by 2 allies 15667 | -5/Factory | Evolved 2 slots: Utility x1, Weapon x1 15668 | -5/Factory | Identified exit to Upper Caves 15961 | -5/Factory | Build established: Scavenger-Skirmisher 16544 | -5/Factory | Scrapoids reinforcements arrived? 16608 | -5/Factory | Entered Upper Caves 16608 | -5/Upper Caves | Accompanied by 5 allies 16609 | -5/Upper Caves | Identified exit to Upper Caves 16610 | -5/Upper Caves | UFD Scientist delivered a prototype 16612 | -5/Upper Caves | Found Prototype Protection 16612 | -5/Upper Caves | Identified Enh. Scrap Shield 16808 | -5/Upper Caves | Build established: Scavenger-Gunner 16888 | -5/Upper Caves | Found Scrap Suit 17089 | -5/Upper Caves | Entered another Upper Caves area 17089 | -5/Upper Caves | Accompanied by 3 allies 17419 | -5/Upper Caves | Discovered new exit (range 15) 17520 | -5/Upper Caves | Entered Zhirov 17520 | -5/Zhirov | Accompanied by 2 allies 17521 | -5/Zhirov | Identified exit to Proximity Caves 17547 | -5/Zhirov | Met Zhirov 17574 | -5/Zhirov | Learned location of Quarantine (-3) 17574 | -5/Zhirov | Learned location of Testing (-2) 17586 | -5/Zhirov | Zhirov requested help retrieving the SGEMP Prototype 17610 | -5/Zhirov | Found Alien Artifact 17610 | -5/Zhirov | Identified Integrated Reactor 17610 | -5/Zhirov | Installed Integrated Reactor, increased core energy generation (+10) 17627 | -5/Zhirov | Found Alien Artifact 17808 | -5/Zhirov | Entered Proximity Caves 17808 | -4/Proximity Caves | Accompanied by 2 allies 17809 | -4/Proximity Caves | Identified exit to Factory 17842 | -4/Proximity Caves | Found DCF Scrap (14 items) 18477 | -4/Proximity Caves | Learned Research terminal intel 18499 | -4/Proximity Caves | Spotted B-86 Titan 18590 | -4/Proximity Caves | Attracted the attention of an 0b10 checkpoint 18844 | -4/Proximity Caves | Found Scrap Suit 18869 | -4/Proximity Caves | System corruption reached 10% 18872 | -4/Proximity Caves | Entered Factory 18872 | -4/Factory | Evolved 2 slots: Propulsion x1, Utility x1 18873 | -4/Factory | Identified exit to Upper Caves 19001 | -4/Factory | Forged Quantum Companion 19236 | -4/Factory | Build established: Scavenger-Assassin 19569 | -4/Factory | Discovered new exit (range 16) 19596 | -4/Factory | Identified exit to Research 19738 | -4/Factory | Entered Upper Caves 19757 | -4/Upper Caves | Encountered a Warlord checkpoint 19860 | -4/Upper Caves | Learned Research terminal intel 20289 | -4/Upper Caves | Learned 4 Research zone layouts 20468 | -4/Upper Caves | Discovered new exit (range 6) 20474 | -4/Upper Caves | Identified exit to Upper Caves 20699 | -4/Upper Caves | Entered another Upper Caves area 20852 | -4/Upper Caves | Discovered exit to Research (range 14) 20937 | -4/Upper Caves | Encountered a Warlord checkpoint 21204 | -4/Upper Caves | Discovered new exit (range 10) 21287 | -4/Upper Caves | Identified exit to Warlord 21288 | -4/Upper Caves | Entered Warlord 21335 | -4/Warlord | System corruption cleaned by Quarantine Array 21584 | -4/Warlord | Visited the Vortex Lab 21584 | -4/Warlord | Warlord's base attacked by MAIN.C 21596 | -4/Warlord | Found Prototype Energy Gun 21596 | -4/Warlord | Identified Vortex Rifle 21609 | -4/Warlord | Found Vortex Rifle 21758 | -4/Warlord | Found Prototype Reactor 21765 | -4/Warlord | Found Prototype Device 21765 | -4/Warlord | Identified Exp. Focal Shield 21775 | -4/Warlord | Found Prototype Hackware 21775 | -4/Warlord | Identified System Mapper 21784 | -4/Warlord | Found Prototype Processor 21925 | -4/Warlord | Rebuked by Warlord 21934 | -4/Warlord | Warlord forces counterattacked 22071 | -4/Warlord | Build established: Scavenger-Skirmisher 22099 | -4/Warlord | Spotted Executioner 22101 | -4/Warlord | Spotted Executioner 22134 | -4/Warlord | Spotted AW-NGB(g) 22168 | -4/Warlord | Destroyed AW-NGB(g) 22259 | -4/Warlord | Warlord base infiltrated, sounded retreat 22296 | -4/Warlord | Lost 4 allies 22410 | -4/Warlord | Lost 3 allies 22448 | -4/Warlord | Build established: Scavenger-Gunner 22579 | -4/Warlord | Spotted Executioner 22580 | -4/Warlord | Discovered new exit (range 15) 22584 | -4/Warlord | Spotted Executioner 22584 | -4/Warlord | Spotted Striker 22603 | -4/Warlord | Entered Proximity Caves 22608 | -3/Proximity Caves | Identified Vortex Chain Reactor 22609 | -3/Proximity Caves | Identified Exp. Core Analyzer 22616 | -3/Proximity Caves | Found DCF Scrap (13 items) 22634 | -3/Proximity Caves | Lost 7 parts (1p2n1u3w) 22891 | -3/Proximity Caves | Build established: Scavenger-Tank 23003 | -3/Proximity Caves | Attracted the attention of an 0b10 checkpoint 23050 | -3/Proximity Caves | Spotted B-86 Titan 23370 | -3/Proximity Caves | Attracted the attention of an 0b10 outpost 23401 | -3/Proximity Caves | System corruption reached 10% 23431 | -3/Proximity Caves | Identified Transdimensional Reconstructor 23431 | -3/Proximity Caves | Warped through subspace 23432 | -3/Proximity Caves | Core integrity fell below 50% 23459 | -3/Proximity Caves | Lost 7 parts (2p3u2w) 23506 | -3/Proximity Caves | Discovered exit to Research (range 8) 23514 | -3/Proximity Caves | Entered Research 23514 | -3/Research | Evolved 2 slots: Propulsion x1, Utility x1 23515 | -3/Research | Identified exit to Research 23516 | -3/Research | Loaded intel: 26 terminal locations 23637 | -3/Research | Fabricated Exp. Sensor Array (x1) 23714 | -3/Research | Revision forces began assault on 0b10 23752 | -3/Research | Met up with Revision 17++ 23844 | -3/Research | Found Com. Tesla Bomb Launcher 23851 | -3/Research | Identified exit to Quarantine 23940 | -3/Research | Build established: Scavenger-Assassin 24063 | -3/Research | Lost 6 allies 24078 | -3/Research | Found Gamma Bomb Array 24143 | -3/Research | Found Adv. Powered Armor 24214 | -3/Research | Research terminal network offline 24672 | -3/Research | Build established: Assassin 24742 | -3/Research | Entered Quarantine 24952 | -3/Quarantine | Cryocooling Duct disabled 24967 | -3/Quarantine | Ambient heat levels rising (+20) 24967 | -3/Quarantine | Non-combat units ordered to evacuate 24976 | -3/Quarantine | Cryocooling Duct disabled 24991 | -3/Quarantine | Ambient heat levels rising (+20) 24991 | -3/Quarantine | Combat units ordered to evacuate 24998 | -3/Quarantine | Found Alien Slashing Weapon 25091 | -3/Quarantine | Quarantine Guard activated 25177 | -3/Quarantine | Spotted Quarantine Guard 25271 | -3/Quarantine | Spotted Quarantine Guard 25279 | -3/Quarantine | Spotted Quarantine Guard 25298 | -3/Quarantine | Destroyed Quarantine Guard 25298 | -3/Quarantine | Destroyed Quarantine Guard 25304 | -3/Quarantine | Spotted Quarantine Guard 25313 | -3/Quarantine | Spotted Quarantine Guard 25329 | -3/Quarantine | Destroyed Quarantine Guard 25331 | -3/Quarantine | Destroyed Quarantine Guard 25358 | -3/Quarantine | Lost 4 parts (1p2u1w) 25360 | -3/Quarantine | Destroyed Quarantine Guard 25513 | -3/Quarantine | Spotted Quarantine Guard 25711 | -3/Quarantine | Spotted Quarantine Guard 25712 | -3/Quarantine | Spotted Quarantine Guard 25718 | -3/Quarantine | Destroyed Quarantine Guard 25724 | -3/Quarantine | System corruption reached 10% 25760 | -3/Quarantine | Lost 3 parts (2p1u) 25794 | -3/Quarantine | System corruption reached 30% 25798 | -3/Quarantine | Discovered exit to Research (range 15) 25829 | -3/Quarantine | Entered Research 25829 | -2/Research | Evolved 2 slots: Power x1, Utility x1 25830 | -2/Research | Loaded intel: 24 terminal locations 25833 | -2/Research | Identified Sigix Broadsword 25859 | -2/Research | Discovered new exit (range 5) 25866 | -2/Research | Identified exit to Access 25868 | -2/Research | Entered Access 25868 | -1/Access | Evolved 2 slots: Power x1, Utility x1 26118 | -1/Access | Build established: Scavenger-Assassin 26348 | -1/Access | Discovered new exit (range 21) 26423 | -1/Access | Build established: Generator-Assassin 26425 | -1/Access | System corruption reached 10% 26482 | -1/Access | Door terminal overloaded 26484 | -1/Access | Released all parts (17) 26494 | *** | Escaped! Last Messages --------------- 26484_ Released Adv. Terrain Scan Processor. 26484_ Released Adv. Signal Interpreter. 26484_ Released Huge Storage Unit. 26484_ Released Arm. Heavy Treads. 26484_ Released Quantum Reactor. 26484_ Released Quantum Companion. 26484_ Released Adv. Sensor Array. 26484_ Released Hvy. Linear Accelerator. 26484_ Released Lgt. Quantum Reactor. 26484_ U-05 Engineer lays Concrete. Quantum Companion materializes via a weapon slot. Quantum Companion: "What's up, bud." 26486_ U-05 Engineer lays Concrete. 26486_ U-05 Engineer destroyed. 26487_ U-05 Engineer lays Concrete. 26490_ System corrupted: Matter fused (-5). 26490_ U-05 Engineer lays Concrete. 26491_ The Access Shell folds into the floor. 26492_ U-05 Engineer lays Concrete. Map ----- +----------------------------------------------------+ | # + ? # ? ?? ? ????????????? | | # # # ?????????????????? | | # # ? ?????? ???????????? | | ########### # # ? ????????????????? | | ########### # ###?#?#?#????#?????????? | | # # ? #######?#??#?#?????????? | | # ############?#######?##????#????????? | | # |##############?#####?##?#??#????????? | | #!!####################??#?????????????? | | #*%#######################??#??????????? | | *#!!####### ############?#???????????? | | [#]![! " ###?#######?#?#??????????? | | =*#*!]! ? ###########??????????????? | | =!=!]%####### ############?#???????????? | | =%%![!####################?#???#??????????? | | !!==[[!!#####################?#????????????? | | ! !|![]|#########?###########??#?#??????????? | | #####+#####]=#######################?????????????? | | #####=#####=*########################????????????? | | ##### #####%[####### ##############??#??#????????? | | #####!#####=* T""" """" ?????????????? | | #####[#####u """ """" BB????????????? | | #####!##### """" BB ???????????? | | ##### ##### = ""?" ? ???????????? | | ##### ##### !% "" """" ? ??????????? | | ##### #?### @" """" ??? ??????????? | | ]#### ##### """" ?????????????? | | #### ##### """" BB????????????? | | # ##### """" BB????????????? | | # !##### """" ??????????????? | | # ! ##### ####### ##############??????????????? | | # *##### ####################??#?????????????? | | # =*##### ###################??#??????????????? | | # ! ##### #####################???????????????? | | ## =##### ##################?##???????????????? | | ## ##### ###################?#???????????????? | | ## ##### ##################?#?#??????????????? | | ## ##### ##################??????????????????? | | ## ##### # ######?##??????????????????? | | ## ##### # #####?#?###????????????????? | | ## ##### # #########??#???????????????? | | ## ##### # " ####??###??????????????????? | | ## ##### + """ ?#####???#??????????????????? | | ## ##### # """ # ###????????????????? | | ## ##### # " ###?### #??????????????????? | | ## ##### # ? ##?#??#????????????????????? | | ##### # #?#?##?????????????????????? | | ##### ###########?#?? ????????????????????? | | ? #?#?# # ? ? ??? ????????????????????? | | ? #####? + ? ????????????????????????? | +----------------------------------------------------+ Best States ------------- Heat Dissipation 65 Coolant Potential 100 Energy Generation 65 Energy Capacity 1090 Matter Stores 370 Matter Capacity 400 Sight Range 16 Robot Scan Range 20 Terrain Scan Range 30 Terrain Scan Density 210 Additional Mass Support 12 EM Shielding 3 Armor Coverage 950 Resistance: EM 25 Evasion (%) 55 Targeting Accuracy 8 Launcher Accuracy 40 Target Analysis 5 Core Analysis 8 Recoil Reduction 6 Particle Charging 20 Salvage Targeting 4 Offensive Hacking 24 Trap Extractor Capacity 8 Item Schematics ----------------- Assault Drone Bay | -5/Zhirov | Free Exp. Heat Sink | -5/Zhirov | Free Exp. Optical Array | -5/Zhirov | Free Imp. Arc Thrower | -5/Zhirov | Free Robot Schematics ------------------ None Fabricated ------------ Exp. Sensor Array | x1 | -3/Research | Preloaded Repaired ---------- Lgt. Treads | 60% | -10/Materials Alien Tech Used ----------------- Integrated Reactor Transdimensional Reconstructor Sigix Broadsword Achievements -------------- Just Shoot The Terminal Challenges ------------ None Game ------ Seed MultireflexImpactSheargun Manual? 0 Play Time 03:00:59 Cumulative 194.8 hours Start 2025.09.09 @ 17:48:20 End 2025.09.11 @ 11:54:02 Sessions 13 Manual Loads 0 Difficulty Rogue Special Mode None Game No. 106 Rogue 106 Adventurer 0 Explorer 0 Win Type 0 Total 22 Types 10/1/7/1/0/1/1/1/0/0 Lore% 73 Gallery% 65 Achievement% 71 Wizard Run 0 Options --------- Layout 1 ASCII 0 Keyboard 0 Movement Arrows Keybinds 0 Fullscreen 2 Font 24/Tamsyn Map View 50x35 Zoom Use 0% Tactical HUD 1 Map Filters NONE Filters NONE Steam 1 RUN: 74e4b537-f42b-43a1-bd06-bcdd4238eac1